[Event "Championnat du monde jeunes U10"]
[Date "2024.11.24"]
[White "Mariani, Kim Paul"]
[Black "Bartash, Saveli"]
[WhiteElo "1814"]
[BlackElo "1661"]
[Round "9.2"]
[Result "0-1"]
[TimeControl "5400+30"]

1. e4 {[%clk 1:29:21]} 1... c5 {[%clk 1:30:34]} 2. Nf3 {[%clk 1:28:44]} 2... d6
{[%clk 1:30:40]} 3. Bb5+ {[%clk 1:28:18]} 3... Bd7 {[%clk 1:30:52]} 4. Bxd7+
{[%clk 1:28:15]} 4... Nxd7 {[%clk 1:31:02]} 5. c4 {[%clk 1:27:09]} 5... Ngf6
{[%clk 1:30:40]} 6. Nc3 {[%clk 1:26:39]} 6... e5 {[%clk 1:27:59]} 7. O-O {[%clk
1:23:33]} 7... Be7 {[%clk 1:27:03]} 8. d3 {[%clk 1:21:24]} 8... O-O {[%clk
1:26:23]} 9. Be3 {[%clk 1:13:57]} 9... Rc8 {[%clk 1:22:08]} 10. Qd2 {[%clk
1:10:09]} 10... Qc7 {[%clk 1:17:02]} 11. Bg5 {[%clk 0:53:40]} 11... h6 {[%clk
1:14:23]} 12. Bxf6 {[%clk 0:48:11]} 12... Nxf6 {[%clk 1:14:27]} 13. Ne1 {[%clk
0:42:47]} 13... Rfd8 {[%clk 1:11:32]} 14. Nc2 {[%clk 0:38:54]} 14... a6 {[%clk
1:08:16]} 15. a4 {[%clk 0:37:12]} 15... b6 {[%clk 1:04:16]} 16. Ne3 {[%clk
0:34:56]} 16... Rb8 {[%clk 1:02:37]} 17. Ned5 {[%clk 0:32:15]} 17... Nxd5 {[%clk
0:59:20]} 18. Nxd5 {[%clk 0:30:33]} 18... Qd7 {[%clk 0:58:36]} 19. b3 {[%clk
0:27:42]} 19... Bg5 {[%clk 0:55:45]} 20. Qc2 {[%clk 0:20:36]} 20... a5 {[%clk
0:52:42]} 21. Qe2 {[%clk 0:18:28]} 21... f5 {[%clk 0:49:52]} 22. Qh5 {[%clk
0:16:09]} 22... fxe4 {[%clk 0:47:21]} 23. dxe4 {[%clk 0:15:07]} 23... Qf7 {[%clk
0:46:28]} 24. Qg4 {[%clk 0:12:01]} 24... Rf8 {[%clk 0:44:59]} 25. h4 {[%clk
0:11:40]} 25... Bf6 {[%clk 0:43:27]} 26. Rad1 {[%clk 0:11:53]} 26... Kh7 {[%clk
0:42:09]} 27. Rd3 {[%clk 0:10:49]} 27... Qg6 {[%clk 0:40:49]} 28. Qxg6+ {[%clk
0:10:52]} 28... Kxg6 {[%clk 0:41:07]} 29. g3 {[%clk 0:11:21]} 29... Rfd8 {[%clk
0:40:52]} 30. Rfd1 {[%clk 0:11:27]} 30... Kf7 {[%clk 0:40:32]} 31. Kg2 {[%clk
0:10:29]} 31... Be7 {[%clk 0:40:02]} 32. h5 {[%clk 0:09:49]} 32... Ke6 {[%clk
0:39:16]} 33. Ne3 {[%clk 0:08:45]} 33... Rb7 {[%clk 0:37:43]} 34. Nf5 {[%clk
0:09:00]} 34... Bf8 {[%clk 0:38:01]} 35. Kf3 {[%clk 0:08:30]} 35... Rf7 {[%clk
0:37:52]} 36. Kg4 {[%clk 0:08:54]} 36... Rf6 {[%clk 0:37:50]} 37. f4 {[%clk
0:08:21]} 37... g6 {[%clk 0:36:36]} 38. hxg6 {[%clk 0:08:27]} 38... Rxg6+ {[%clk
0:36:48]} 39. Kh5 {[%clk 0:08:45]} 39... Rf6 {[%clk 0:37:05]} 40. Rd5 {[%clk
0:08:23]} 40... exf4 {[%clk 0:36:11]} 41. gxf4 {[%clk 0:07:42]} 41... Kf7 {[%clk
0:35:35]} 42. Rg1 {[%clk 0:06:24]} 42... Re8 {[%clk 0:34:49]} 43. Re1 {[%clk
0:05:56]} 43... Rfe6 {[%clk 0:33:13]} 44. e5 {[%clk 0:05:13]} 44... dxe5 {[%clk
0:32:25]} 45. fxe5 {[%clk 0:05:05]} 45... Kg8 {[%clk 0:30:58]} 46. Re4 {[%clk
0:03:29]} 46... Kf7 {[%clk 0:29:55]} 47. Kg4 {[%clk 0:02:51]} 47... Kg6 {[%clk
0:27:50]} 48. Nh4+ {[%clk 0:02:47]} 48... Kf7 {[%clk 0:26:44]} 49. Kf5 {[%clk
0:03:00]} 49... Be7 {[%clk 0:24:53]} 50. Nf3 {[%clk 0:02:02]} 50... Rg8 {[%clk
0:24:02]} 51. Rf4 {[%clk 0:01:04]} 51... Bg5 {[%clk 0:23:12]} 52. Rd7+ {[%clk
0:00:53]} 52... Re7 {[%clk 0:22:32]} 53. Rxe7+ {[%clk 0:00:33]} 53... Kxe7
{[%clk 0:22:34]} 54. Re4 {[%clk 0:00:39]} 54... Rf8+ {[%clk 0:21:57]} 55. Kg4
{[%clk 0:01:01]} 55... Ke6 {[%clk 0:21:24]} 56. Ne1 {[%clk 0:00:35]} 56... Rd8
{[%clk 0:19:48]} 57. Re2 {[%clk 0:00:32]} 57... Rd1 {[%clk 0:19:26]} 58. Re4
{[%clk 0:00:35]} 58... Rb1 {[%clk 0:19:31]} 59. Nf3 {[%clk 0:00:32]} 59... Rxb3
{[%clk 0:19:41]} 60. Nxg5+ {[%clk 0:00:35]} 60... hxg5 {[%clk 0:20:05]} 61. Kxg5
{[%clk 0:00:49]} 61... Rb4 {[%clk 0:19:53]} 62. Kf4 {[%clk 0:00:50]} 62... Rxa4
{[%clk 0:20:17]} 63. Ke3 {[%clk 0:01:04]} 63... Ra1 {[%clk 0:20:15]} 64. Kd3
{[%clk 0:01:10]} 64... Rd1+ {[%clk 0:18:45]} 65. Kc3 {[%clk 0:00:59]} 65... Rd4
{[%clk 0:16:38]} 66. Re1 {[%clk 0:00:54]} 66... Rf4 {[%clk 0:16:30]} 67. Kb3
{[%clk 0:00:32]} 67... Rf5 {[%clk 0:16:40]} 68. Ka4 {[%clk 0:00:44]} 68... Rxe5
{[%clk 0:16:49]} 69. Rb1 {[%clk 0:01:03]} 69... Re2 {[%clk 0:16:29]} 70. Rxb6+
{[%clk 0:01:16]} 70... Ke5 {[%clk 0:16:40]} 71. Rb1 {[%clk 0:01:05]} 71... Kd4
{[%clk 0:16:36]} 72. Rc1 {[%clk 0:00:34]} 72... Rb2 {[%clk 0:16:39]} 73. Kxa5
{[%clk 0:00:53]} 73... Rb4 {[%clk 0:17:03]} 74. Rd1+ {[%clk 0:00:43]} 74... Kc3
{[%clk 0:17:17]} 75. Rh1 {[%clk 0:00:46]} 75... Kxc4 {[%clk 0:17:24]} 76. Rc1+
{[%clk 0:00:31]} 76... Kd5 {[%clk 0:17:35]} 77. Rc2 {[%clk 0:00:35]} 77... Rb8
{[%clk 0:17:22]} 78. Ka4 {[%clk 0:00:52]} 78... Kd4 {[%clk 0:17:39]} 79. Ka3
{[%clk 0:00:59]} 79... c4 {[%clk 0:17:59]} 80. Ka2 {[%clk 0:00:55]} 80... Kd3
{[%clk 0:18:06]} 81. Rh2 {[%clk 0:01:15]} 81... Re8 {[%clk 0:18:30]} 82. Rh1
{[%clk 0:00:32]} 82... Kd2 {[%clk 0:18:23]} 83. Rh2+ {[%clk 0:00:31]} 83... Re2
{[%clk 0:18:30]} 84. Rh3 {[%clk 0:00:53]} 84... c3 {[%clk 0:18:29]} 85. Rh8
{[%clk 0:00:38]} 85... c2 {[%clk 0:18:45]} 86. Rd8+ {[%clk 0:01:01]} 86... Kc1
{[%clk 0:19:09]} 87. Rd5 {[%clk 0:00:59]} 87... Re8 {[%clk 0:18:42]} 88. Rc5
{[%clk 0:01:08]} 88... Ra8+ {[%clk 0:19:01]} 89. Kb3 {[%clk 0:00:35]} 89... Kb1
{[%clk 0:19:20]} 0-1

[Variant "Standard"]
[Site "Europe Echecs"]

[Event "Championnat du monde jeunes U10"]
[Date "2024.11.24"]
[White "Zhou, Martin"]
[Black "Munoz Padilla, Andres"]
[WhiteElo "1776"]
[BlackElo "1604"]
[Round "9.3"]
[Result "1-0"]
[TimeControl "5400+30"]

1. e4 {[%clk 1:30:59]} 1... c5 {[%clk 1:30:35]} 2. Nc3 {[%clk 1:31:24]} 2... Nc6
{[%clk 1:30:35]} 3. g3 {[%clk 1:31:33]} 3... g6 {[%clk 1:29:48]} 4. Bg2 {[%clk
1:31:55]} 4... Bg7 {[%clk 1:27:43]} 5. d3 {[%clk 1:32:17]} 5... d6 {[%clk
1:27:34]} 6. Be3 {[%clk 1:32:40]} 6... e5 {[%clk 1:27:31]} 7. Nge2 {[%clk
1:31:55]} 7... Nd4 {[%clk 1:26:05]} 8. O-O {[%clk 1:27:59]} 8... Ne7 {[%clk
1:24:30]} 9. f4 {[%clk 1:27:24]} 9... O-O {[%clk 1:23:08]} 10. Bd2 {[%clk
1:24:10]} 10... f5 {[%clk 1:12:30]} 11. Nxd4 {[%clk 1:23:43]} 11... cxd4 {[%clk
1:12:50]} 12. Ne2 {[%clk 1:23:56]} 12... Rb8 {[%clk 1:09:15]} 13. c3 {[%clk
1:14:31]} 13... dxc3 {[%clk 1:01:20]} 14. Qb3+ {[%clk 1:14:23]} 14... Kh8 {[%clk
1:01:34]} 15. Bxc3 {[%clk 1:14:25]} 15... Nc6 {[%clk 0:59:25]} 16. Rad1 {[%clk
1:14:11]} 16... Qe7 {[%clk 0:54:55]} 17. d4 {[%clk 1:10:34]} 17... fxe4 {[%clk
0:53:35]} 18. fxe5 {[%clk 0:55:00]} 18... Bg4 {[%clk 0:49:34]} 19. Qc2 {[%clk
0:48:13]} 19... dxe5 {[%clk 0:37:30]} 20. Qxe4 {[%clk 0:37:12]} 20... Rxf1+
{[%clk 0:28:58]} 21. Bxf1 {[%clk 0:34:09]} 21... Bf5 {[%clk 0:26:18]} 22. Qe3
{[%clk 0:34:15]} 22... Qd6 {[%clk 0:21:27]} 23. d5 {[%clk 0:33:36]} 23... Ne7
{[%clk 0:21:16]} 24. Qxa7 {[%clk 0:32:56]} 24... Be4 {[%clk 0:18:18]} 25. Bb4
{[%clk 0:32:55]} 25... Qf6 {[%clk 0:13:21]} 26. Bxe7 {[%clk 0:32:34]} 26... Qxe7
{[%clk 0:13:40]} 27. Qxb8+ {[%clk 0:32:57]} 27... Bf8 {[%clk 0:14:06]} 28. d6
{[%clk 0:31:24]} 28... Qf6 {[%clk 0:12:50]} 29. d7 {[%clk 0:31:17]} 29... Qf3
{[%clk 0:12:12]} 30. Qxf8+ {[%clk 0:31:26]} 1-0

[Variant "Standard"]
[Site "Europe Echecs"]

[Event "Championnat du monde jeunes U10"]
[Date "2024.11.24"]
[White "Montaigu Dupont, Arthur"]
[Black "Yrysov, Timur"]
[WhiteElo "1767"]
[BlackElo "1604"]
[Round "9.4"]
[Result "0-1"]
[TimeControl "5400+30"]

1. e4 {[%clk 1:30:59]} 1... Nc6 {[%clk 1:30:24]} 2. d4 {[%clk 1:31:19]} 2... e5
{[%clk 1:30:31]} 3. d5 {[%clk 1:30:28]} 3... Nce7 {[%clk 1:30:32]} 4. Nf3 {[%clk
1:29:45]} 4... Ng6 {[%clk 1:30:32]} 5. c4 {[%clk 1:29:22]} 5... Nf6 {[%clk
1:30:36]} 6. Bd3 {[%clk 1:29:36]} 6... Bc5 {[%clk 1:30:40]} 7. Nc3 {[%clk
1:28:32]} 7... O-O {[%clk 1:30:14]} 8. O-O {[%clk 1:28:24]} 8... d6 {[%clk
1:30:12]} 9. a3 {[%clk 1:25:38]} 9... a6 {[%clk 1:30:11]} 10. b4 {[%clk
1:26:02]} 10... Ba7 {[%clk 1:30:28]} 11. a4 {[%clk 1:21:57]} 11... Nh5 {[%clk
1:24:50]} 12. Bc2 {[%clk 1:03:16]} 12... Nhf4 {[%clk 1:23:32]} 13. g3 {[%clk
1:01:55]} 13... Nh3+ {[%clk 1:21:32]} 14. Kg2 {[%clk 1:02:04]} 14... Bg4 {[%clk
1:16:49]} 15. Qd3 {[%clk 0:53:55]} 15... f5 {[%clk 1:14:55]} 16. Bd1 {[%clk
0:35:42]} 16... f4 {[%clk 1:11:08]} 17. c5 {[%clk 0:26:43]} 17... dxc5 {[%clk
1:06:53]} 18. bxc5 {[%clk 0:27:08]} 18... Bxc5 {[%clk 1:06:17]} 19. Ba3 {[%clk
0:27:24]} 19... Bxa3 {[%clk 1:06:18]} 20. Rxa3 {[%clk 0:27:50]} 20... fxg3
{[%clk 1:06:35]} 21. fxg3 {[%clk 0:28:10]} 21... Nhf4+ {[%clk 1:06:24]} 22. gxf4
{[%clk 0:25:44]} 22... Nxf4+ {[%clk 1:06:48]} 23. Kg3 {[%clk 0:24:12]} 23... Re8
{[%clk 1:07:08]} 24. Kxg4 {[%clk 0:24:12]} 24... Nxd3 {[%clk 1:06:34]} 25. Rb3
{[%clk 0:22:20]} 0-1

[Variant "Standard"]
[Site "Europe Echecs"]

[Event "Championnat du monde jeunes U10"]
[Date "2024.11.24"]
[White "Grimm, Jakob"]
[Black "Fattori Dittmar, Luca"]
[WhiteElo "1646"]
[BlackElo "1766"]
[Round "9.5"]
[Result "1/2-1/2"]
[TimeControl "5400+30"]

1. e4 {[%clk 1:30:30]} 1... e6 {[%clk 1:30:54]} 2. d4 {[%clk 1:31:26]} 2... d5
{[%clk 1:31:20]} 3. Nc3 {[%clk 1:31:52]} 3... dxe4 {[%clk 1:31:18]} 4. Nxe4
{[%clk 1:32:15]} 4... Nd7 {[%clk 1:31:38]} 5. Bd3 {[%clk 1:32:14]} 5... Ngf6
{[%clk 1:31:42]} 6. Qe2 Nxe4 {[%clk 1:31:23]} 7. Bxe4 {[%clk 1:32:51]} 7... Nf6
{[%clk 1:31:13]} 8. Bxb7 {[%clk 1:33:14]} 8... Bxb7 {[%clk 1:31:17]} 9. Qb5+
{[%clk 1:33:37]} 9... Nd7 {[%clk 1:29:08]} 10. Qxb7 {[%clk 1:32:48]} 10... Bd6
{[%clk 1:28:27]} 11. Nf3 {[%clk 1:32:52]} 11... O-O {[%clk 1:28:25]} 12. O-O
{[%clk 1:32:55]} 12... c5 {[%clk 1:24:49]} 13. Rd1 {[%clk 1:26:25]} 13... c4
{[%clk 1:10:45]} 14. Ne5 {[%clk 1:19:12]} 14... Nb6 {[%clk 1:10:15]} 15. Qf3
{[%clk 1:14:30]} 15... Qc7 {[%clk 1:09:09]} 16. Qe2 {[%clk 1:09:26]} 16... Rfd8
{[%clk 1:05:49]} 17. Nf3 {[%clk 1:06:14]} 17... Rab8 {[%clk 1:03:36]} 18. c3
{[%clk 1:06:05]} 18... Na4 {[%clk 1:00:19]} 19. Qc2 {[%clk 1:01:00]} 19... Qa5
{[%clk 0:53:12]} 20. Ng5 {[%clk 0:58:09]} 20... g6 {[%clk 0:52:11]} 21. Ne4
{[%clk 0:57:55]} 21... Be7 {[%clk 0:49:04]} 22. b4 {[%clk 0:49:10]} 22... Qb5
{[%clk 0:44:25]} 23. Bf4 {[%clk 0:48:38]} 23... Rbc8 {[%clk 0:42:35]} 24. Rac1
{[%clk 0:47:12]} 24... Nb6 25. Qe2 {[%clk 0:44:58]} 25... Nd5 {[%clk 0:37:19]}
26. Bh6 {[%clk 0:44:52]} 26... a5 {[%clk 0:34:55]} 27. a3 {[%clk 0:44:20]} 27...
axb4 {[%clk 0:34:33]} 28. axb4 {[%clk 0:44:37]} 28... Ra8 {[%clk 0:34:30]} 29.
Ra1 {[%clk 0:44:39]} 29... Qc6 {[%clk 0:33:18]} 30. Rxa8 {[%clk 0:43:10]} 30...
Rxa8 {[%clk 0:31:44]} 31. Qf3 {[%clk 0:40:51]} 31... Ra3 {[%clk 0:29:38]} 32.
Qg3 {[%clk 0:40:14]} 32... Qa8 {[%clk 0:27:53]} 33. Qe5 {[%clk 0:36:31]} 33...
Bf8 {[%clk 0:27:59]} 34. Bxf8 {[%clk 0:35:58]} 34... Qxf8 {[%clk 0:27:52]} 35.
Nf6+ {[%clk 0:32:39]} 35... Nxf6 {[%clk 0:28:15]} 36. Qxf6 {[%clk 0:33:05]}
36... Qa8 {[%clk 0:27:00]} 37. Rc1 {[%clk 0:30:20]} 37... Rxc3 {[%clk 0:26:17]}
38. Qf4 {[%clk 0:30:03]} 38... Rxc1+ {[%clk 0:26:14]} 39. Qxc1 {[%clk 0:30:30]}
39... Qc6 {[%clk 0:26:05]} 40. Qc3 {[%clk 0:30:14]} 40... Qb5 {[%clk 0:25:31]}
1/2-1/2

[Variant "Standard"]
[Site "Europe Echecs"]

[Event "Championnat du monde jeunes U10"]
[Date "2024.11.24"]
[White "Hochman, Gur"]
[Black "Ostapenko, Volodymyr"]
[WhiteElo "1626"]
[BlackElo "1720"]
[Round "9.6"]
[Result "1-0"]
[TimeControl "5400+30"]

1. e4 {[%clk 1:30:58]} 1... e5 {[%clk 1:30:44]} 2. Nc3 {[%clk 1:31:22]} 2... Nf6
{[%clk 1:30:48]} 3. f4 {[%clk 1:31:43]} 3... d6 {[%clk 1:28:15]} 4. Nf3 {[%clk
1:31:32]} 4... Nc6 {[%clk 1:27:56]} 5. Bb5 {[%clk 1:31:06]} 5... Bg4 {[%clk
1:24:39]} 6. d3 {[%clk 1:30:07]} 6... a6 {[%clk 1:22:31]} 7. Bxc6+ {[%clk
1:27:43]} 7... bxc6 {[%clk 1:22:58]} 8. h3 {[%clk 1:26:28]} 8... Bxf3 {[%clk
1:21:30]} 9. Qxf3 {[%clk 1:26:43]} 9... Be7 {[%clk 1:16:03]} 10. f5 {[%clk
1:26:40]} 10... O-O {[%clk 1:14:29]} 11. g4 {[%clk 1:25:54]} 11... Nd7 {[%clk
1:12:26]} 12. Qg2 {[%clk 1:22:31]} 12... Bh4+ {[%clk 1:10:09]} 13. Ke2 {[%clk
1:22:00]} 13... f6 {[%clk 1:04:24]} 14. Bd2 {[%clk 1:18:18]} 14... Rb8 {[%clk
1:03:35]} 15. Rab1 {[%clk 1:17:25]} 15... Nb6 {[%clk 1:02:18]} 16. Be1 {[%clk
1:16:56]} 16... Bxe1 {[%clk 1:01:18]} 17. Rbxe1 {[%clk 1:15:11]} 17... d5 {[%clk
1:00:46]} 18. h4 {[%clk 1:12:16]} 18... d4 {[%clk 1:00:33]} 19. Nd1 {[%clk
1:12:07]} 19... c5 {[%clk 0:59:27]} 20. b3 {[%clk 1:10:37]} 20... Qe8 {[%clk
0:56:50]} 21. g5 {[%clk 1:08:29]} 21... Qh5+ {[%clk 0:55:29]} 22. Kd2 {[%clk
1:08:30]} 22... Kh8 {[%clk 0:50:45]} 23. Reg1 {[%clk 1:07:39]} 23... Rg8 {[%clk
0:48:17]} 24. g6 {[%clk 1:05:58]} 24... h6 {[%clk 0:47:36]} 25. Rh3 {[%clk
1:02:00]} 25... Nc8 {[%clk 0:44:04]} 26. Rgh1 {[%clk 1:00:03]} 26... Nd6 {[%clk
0:44:01]} 27. Rg3 {[%clk 0:59:46]} 27... Nb5 {[%clk 0:43:20]} 28. Rg5 {[%clk
0:59:26]} 28... fxg5 {[%clk 0:43:00]} 29. hxg5 {[%clk 0:59:17]} 29... Qxh1
{[%clk 0:43:09]} 30. Qxh1 {[%clk 0:59:40]} 30... Rge8 {[%clk 0:42:11]} 31. gxh6
{[%clk 0:59:40]} 31... Rf8 {[%clk 0:41:47]} 32. hxg7+ Kxg7 {[%clk 0:42:11]} 33.
Qh7+ {[%clk 0:59:30]} 33... Kf6 {[%clk 0:42:36]} 34. g7 {[%clk 0:59:45]} 34...
Rg8 {[%clk 0:42:56]} 35. Qg6+ {[%clk 1:00:04]} 35... Ke7 {[%clk 0:42:44]} 36.
Qe6+ {[%clk 1:00:26]} 1-0

[Variant "Standard"]
[Site "Europe Echecs"]

[Event "Championnat du monde jeunes U10"]
[Date "2024.11.24"]
[White "Ismailov, Omarbek"]
[Black "Schettini Acuna, Massimo Matteo"]
[WhiteElo "1625"]
[BlackElo "1703"]
[Round "9.7"]
[Result "1-0"]
[TimeControl "5400+30"]

1. d4 {[%clk 1:30:57]} 1... d5 {[%clk 1:30:54]} 2. Bf4 {[%clk 1:31:16]} 2... Nf6
{[%clk 1:31:02]} 3. e3 {[%clk 1:31:35]} 3... e6 {[%clk 1:28:15]} 4. Nf3 {[%clk
1:30:18]} 4... Bd6 {[%clk 1:27:41]} 5. Bg3 {[%clk 1:30:21]} 5... c5 {[%clk
1:27:10]} 6. c3 {[%clk 1:30:19]} 6... Qc7 {[%clk 1:27:20]} 7. Nbd2 {[%clk
1:29:54]} 7... O-O {[%clk 1:24:50]} 8. Bd3 {[%clk 1:29:28]} 8... Nbd7 {[%clk
1:24:00]} 9. O-O {[%clk 1:27:01]} 9... Bxg3 {[%clk 1:24:19]} 10. hxg3 {[%clk
1:27:24]} 10... e5 {[%clk 1:24:25]} 11. Nxe5 {[%clk 1:26:54]} 11... Nxe5 {[%clk
1:24:42]} 12. dxe5 {[%clk 1:27:17]} 12... Qxe5 {[%clk 1:25:01]} 13. Nf3 {[%clk
1:27:19]} 13... Qe7 {[%clk 1:25:19]} 14. c4 {[%clk 1:25:16]} 14... Rd8 {[%clk
1:15:45]} 15. Qc2 {[%clk 1:22:24]} 15... h6 {[%clk 1:13:03]} 16. Rad1 {[%clk
1:18:24]} 16... Bg4 {[%clk 0:59:40]} 17. cxd5 {[%clk 0:53:44]} 17... Nxd5 {[%clk
0:59:07]} 18. Bh7+ {[%clk 0:52:58]} 18... Kh8 {[%clk 0:54:50]} 19. Qe4 {[%clk
0:52:47]} 19... Be6 {[%clk 0:30:45]} 20. Bf5 {[%clk 0:48:15]} 20... Nf6 {[%clk
0:28:11]} 21. Qe5 {[%clk 0:45:45]} 21... Nd7 {[%clk 0:20:27]} 22. Qe4 {[%clk
0:42:09]} 22... Nf6 {[%clk 0:19:22]} 23. Qc2 {[%clk 0:41:37]} 23... Bd5 {[%clk
0:18:59]} 24. Nd2 {[%clk 0:34:41]} 24... g6 {[%clk 0:14:39]} 25. Bh3 {[%clk
0:33:44]} 25... b6 {[%clk 0:13:14]} 26. Rfe1 {[%clk 0:32:23]} 26... Re8 {[%clk
0:12:12]} 27. e4 {[%clk 0:31:04]} 27... Be6 {[%clk 0:10:34]} 28. e5 {[%clk
0:29:23]} 28... Nd5 {[%clk 0:10:34]} 29. Bxe6 {[%clk 0:28:10]} 29... Qxe6 {[%clk
0:10:51]} 30. Ne4 {[%clk 0:28:11]} 30... Nb4 {[%clk 0:09:04]} 31. Qd2 {[%clk
0:28:24]} 31... Rad8 {[%clk 0:08:31]} 32. Qxh6+ {[%clk 0:28:42]} 32... Kg8
{[%clk 0:08:17]} 33. Nf6+ {[%clk 0:29:04]} 33... Qxf6 {[%clk 0:08:37]} 34. exf6
{[%clk 0:29:30]} 34... Rxe1+ {[%clk 0:08:49]} 35. Rxe1 {[%clk 0:29:53]} 35...
Rd1 {[%clk 0:09:03]} 36. Qg7# {[%clk 0:30:17]} 1-0

[Variant "Standard"]
[Site "Europe Echecs"]

[Event "Championnat du monde jeunes U10"]
[Date "2024.11.24"]
[White "Hung, I-Hsuan"]
[Black "Yao, Lucas Mason Pin Qian"]
[WhiteElo "1608"]
[BlackElo "1687"]
[Round "9.8"]
[Result "0-1"]
[TimeControl "5400+30"]

1. e4 {[%clk 1:30:58]} 1... d5 {[%clk 1:30:51]} 2. exd5 {[%clk 1:31:21]} 2...
Qxd5 {[%clk 1:31:12]} 3. Nc3 {[%clk 1:31:42]} 3... Qa5 {[%clk 1:31:34]} 4. Bc4
{[%clk 1:31:56]} 4... Nf6 {[%clk 1:31:18]} 5. d3 {[%clk 1:32:00]} 5... c6 {[%clk
1:31:10]} 6. Bd2 {[%clk 1:32:00]} 6... Qc7 {[%clk 1:29:59]} 7. Qe2 {[%clk
1:31:59]} 7... Bf5 {[%clk 1:29:25]} 8. h3 {[%clk 1:31:47]} 8... Nbd7 {[%clk
1:28:02]} 9. g4 {[%clk 1:30:17]} 9... Bg6 {[%clk 1:28:06]} 10. f4 {[%clk
1:30:17]} 10... h6 {[%clk 1:25:25]} 11. Nf3 {[%clk 1:29:11]} 11... Bh7 {[%clk
1:21:11]} 12. O-O-O {[%clk 1:25:45]} 12... Bg8 {[%clk 1:19:03]} 13. Qf2 {[%clk
1:19:29]} 13... Nb6 {[%clk 1:15:50]} 14. Bb3 {[%clk 1:18:42]} 14... O-O-O {[%clk
1:15:36]} 15. Ne5 {[%clk 1:16:21]} 15... e6 {[%clk 1:13:56]} 16. Nc4 {[%clk
1:10:47]} 16... Nfd7 {[%clk 1:01:46]} 17. Nxb6+ {[%clk 1:08:52]} 17... axb6
{[%clk 0:58:21]} 18. Ne4 {[%clk 1:06:12]} 18... b5 {[%clk 0:47:52]} 19. a3
{[%clk 0:59:36]} 19... Be7 {[%clk 0:42:24]} 20. Bc3 {[%clk 0:54:27]} 20... Bf8
{[%clk 0:36:03]} 21. h4 {[%clk 0:47:04]} 21... c5 {[%clk 0:34:19]} 22. Ba2
{[%clk 0:42:17]} 22... f5 {[%clk 0:32:20]} 23. gxf5 {[%clk 0:40:51]} 23... exf5
{[%clk 0:32:31]} 24. Bxg8 {[%clk 0:41:09]} 24... Rxg8 {[%clk 0:32:52]} 25. Ng3
{[%clk 0:41:06]} 25... g6 {[%clk 0:31:52]} 26. h5 {[%clk 0:41:19]} 26... Bd6
{[%clk 0:32:11]} 27. Bd2 {[%clk 0:40:29]} 27... Rdf8 {[%clk 0:31:50]} 28. Rde1
{[%clk 0:38:17]} 28... g5 {[%clk 0:31:29]} 29. Ne2 {[%clk 0:37:15]} 29... Nf6
{[%clk 0:27:25]} 30. fxg5 {[%clk 0:35:20]} 30... Ng4 {[%clk 0:27:30]} 31. Qf3
{[%clk 0:31:02]} 31... hxg5 {[%clk 0:27:52]} 32. h6 {[%clk 0:29:21]} 32... Nh2
{[%clk 0:25:27]} 33. Qh5 {[%clk 0:27:08]} 33... g4 {[%clk 0:24:55]} 34. Bc3
{[%clk 0:24:47]} 34... Rf7 {[%clk 0:23:05]} 35. h7 {[%clk 0:23:14]} 35... Rxh7
{[%clk 0:23:08]} 36. Qxf5+ {[%clk 0:23:31]} 36... Qd7 {[%clk 0:23:25]} 37. Qxd7+
{[%clk 0:23:22]} 37... Kxd7 {[%clk 0:23:47]} 38. Bd2 {[%clk 0:20:28]} 38... g3
{[%clk 0:23:33]} 39. Bf4 {[%clk 0:20:42]} 39... Bxf4+ {[%clk 0:23:31]} 40. Nxf4
{[%clk 0:21:05]} 40... g2 {[%clk 0:23:51]} 41. Rhg1 {[%clk 0:21:22]} 41... Nf3
{[%clk 0:24:04]} 42. Rxg2 {[%clk 0:21:24]} 42... Rxg2 {[%clk 0:24:23]} 43. Nxg2
{[%clk 0:21:45]} 43... Nxe1 {[%clk 0:24:42]} 44. Nxe1 {[%clk 0:22:04]} 44... Rh2
{[%clk 0:24:53]} 45. Nf3 {[%clk 0:21:16]} 45... Rg2 {[%clk 0:25:03]} 46. Nh4
{[%clk 0:20:59]} 46... Rf2 {[%clk 0:25:17]} 47. b3 {[%clk 0:20:41]} 47... Ke6
{[%clk 0:25:38]} 48. Ng6 {[%clk 0:20:51]} 48... b6 {[%clk 0:24:56]} 49. b4
{[%clk 0:20:38]} 49... c4 {[%clk 0:25:01]} 50. dxc4 {[%clk 0:20:47]} 50... bxc4
{[%clk 0:25:23]} 51. a4 {[%clk 0:20:45]} 51... c3 {[%clk 0:25:25]} 52. Kb1
{[%clk 0:20:05]} 52... Kf6 {[%clk 0:24:37]} 53. Nf8 {[%clk 0:20:16]} 53... Rd2
{[%clk 0:24:46]} 54. Ka2 {[%clk 0:19:37]} 54... Rd8 {[%clk 0:24:10]} 55. Nh7+
{[%clk 0:19:04]} 55... Kg6 {[%clk 0:24:31]} 56. Kb3 {[%clk 0:19:15]} 56... Rc8
{[%clk 0:24:12]} 57. Nf8+ {[%clk 0:19:38]} 57... Rxf8 {[%clk 0:24:34]} 58. Kxc3
{[%clk 0:20:04]} 58... Rc8+ {[%clk 0:24:44]} 59. Kb3 {[%clk 0:20:16]} 59... Kf5
{[%clk 0:24:51]} 60. a5 {[%clk 0:19:10]} 60... b5 {[%clk 0:25:08]} 61. a6 {[%clk
0:19:30]} 61... Ke5 {[%clk 0:25:25]} 0-1

[Variant "Standard"]
[Site "Europe Echecs"]